Workbook

Sheet Superpesis
B1: Hanni-Mari Vainikainen os. Ruuskanen | H1: 15.7.1988 Maaninka
B2: SUPERPESIS | E2: Runkosarja | I2: Kärkilyönnit (KL), pesänvälit | Q2: Runkosarja | U2: Ylempi loppusarja | Z2: Alempi loppusarja | AG2: Arvo-ottelut ja mitalit
B3: Vuosi | C3: Sija | D3: Seura | E3: OTT | F3: KUN | G3: LÖI | H3: TOI | I3: KL | J3: 0 > 1 | K3: 1 > 2 | L3: 2 > 3 | M3: 3 > k | N3: KL-% | P3: LÖI | Q3: TOI | R3: L+T | S3: KL | U3: OTT | V3: KUN | W3: LÖI | X3: TOI | Y3: KL | Z3: OTT | AA3: KUN | AB3: LÖI | AC3: TOI | AD3: KL | AE3: IL | AF3: LL | AG3: Halli | AH3: K | AI3: H | AJ3: P
B4: 2005 | D4: SiiPe 2 | F4: suomensarja
B5: 2005 | D5: ViU | F5: ykköspesis
B6: 2005 | C6: 6. | D6: SiiPe | E6: 4 | F6: 0 | G6: 2 | H6: 2 | I6: 11 | J6: 5 | K6: 2 | L6: 2 | M6: 2 | N6: 78.6 % | O6: =PRODUCT(I6/N6) -> 14.00025455
B7: 2006 | C7: 8. | D7: SiiPe | E7: 19 | F7: 0 | G7: 3 | H7: 5 | I7: 40 | J7: 17 | K7: 14 | L7: 6 | M7: 3 | N7: 41.7 % | O7: 96.01536246 | U7: 7 | V7: 0 | W7: 1 | X7: 1 | Y7: 21
B8: 2007 | C8: 10. | D8: SiiPe | E8: 20 | F8: 1 | G8: 4 | H8: 13 | I8: 93 | J8: 8 | K8: 52 | L8: 28 | M8: 5 | N8: 62.4 % | O8: 149.014581 | Z8: 2 | AA8: 0 | AB8: 0 | AC8: 4 | AD8: 9
B9: 2008 | C9: 8. | D9: SiiPe | E9: 20 | F9: 1 | G9: 3 | H9: 19 | I9: 95 | J9: 24 | K9: 47 | L9: 20 | M9: 4 | N9: 66.9 % | O9: 142.0029895 | S9: 8. | U9: 7 | V9: 0 | W9: 1 | X9: 4 | Y9: 27
B10: 2009 | C10: 1. | D10: Kirittäret | E10: 23 | F10: 1 | G10: 7 | H10: 4 | I10: 45 | J10: 11 | K10: 9 | L10: 17 | M10: 8 | N10: 40.5 % | O10: 111.00148 | T10: =PRODUCT(L10/S10) ->  | U10: 10 | V10: 0 | W10: 3 | X10: 1 | Y10: 15 | AH10: 1
B11: 2010 | C11: 8. | D11: SiiPe | E11: 24 | F11: 0 | G11: 4 | H11: 17 | I11: 102 | J11: 21 | K11: 69 | L11: 8 | M11: 4 | N11: 60.0 % | O11: 170 | U11: 3 | V11: 0 | W11: 0 | X11: 1 | Y11: 9
B12: 2011 | C12: 10. | D12: SiiPe | E12: 10 | F12: 0 | G12: 1 | H12: 12 | I12: 52 | J12: 10 | K12: 30 | L12: 11 | M12: 1 | N12: 76.5 % | O12: =PRODUCT(I12/N12) -> 67.97385621
B13: 2012 | C13: 5. | D13: Pesä Ysit | E13: 21 | F13: 1 | G13: 12 | H13: 14 | I13: 104 | J13: 6 | K13: 34 | L13: 51 | M13: 13 | N13: 66.7 % | O13: =PRODUCT(I13/N13) -> 155.922039 | U13: 3 | V13: 0 | W13: 0 | X13: 1 | Y13: 13
B14: 2013 | D14: SiiPe | F14: suomensarja | T14: =PRODUCT(L14/S14) -> 
B15: 2014
B16: 2015 | D16: SiiPe | F16: suomensarja
B17: 2016
B18: 2017
B19: 2018 | D19: SiiPe 2 | F19: suomensarja
B20: 2019
B21: 2020 | C21: 11. | D21: SiiPe | E21: 17 | F21: 2 | G21: 16 | H21: 4 | I21: 72 | J21: 5 | K21: 18 | L21: 31 | M21: 18 | N21: 57.6 % | O21: 125
B22: Yhteensä | E22: =SUM(E4:E21) -> 158 | F22: =SUM(F4:F21) -> 6 | G22: 52 | H22: 90 | I22: 614 | J22: 107 | K22: 275 | L22: 174 | M22: 58 | N22: =PRODUCT(I22/O22) -> 59.6 % | O22: =SUM(O6:O21) -> 1030.930563 | U22: =SUM(U4:U16) -> 30 | V22: 0 | W22: 5 | X22: 8 | Y22: 85 | Z22: 2 | AA22: 0 | AB22: 0 | AC22: 4 | AD22: 9 | AE22: 0 | AF22: 0 | AG22: 0 | AH22: 1 | AI22: 0 | AJ22: 0
B23: Pesispörssi | D23: =SUM(F22:H22)+((I22-F22-G22)/3)+(E22/3)+(AE22*25)+(AF22*25)+(AG22*10)+(AH22*25)+(AI22*20)+(AJ22*15) -> 411.0
B25: URA SUPERISSA | E25: OTT | F25: KUN | G25: LÖI | H25: TOI | I25: KL | K25: ka/L | L25: ka/T | M25: ka/KL | N25: K - % | P25: ENSIMMÄISET
B26: Runkosarja | E26: =PRODUCT(E22) -> 158 | F26: =PRODUCT(F22) -> 6 | G26: =PRODUCT(G22) -> 52 | H26: =PRODUCT(H22) -> 90 | I26: =PRODUCT(I22) -> 614 | K26: =PRODUCT((F26+G26)/E26) -> 0.37 | L26: =PRODUCT(H26/E26) -> 0.57 | M26: =PRODUCT(I26/E26) -> 3.89 | N26: =PRODUCT(N22) -> 59.6 % | O26: =PRODUCT(O22) -> 1030.930563 | P26: Ottelu | S26: 17.05. 2005 Virkiä - SiiPe 2-0 (8-3, 2-1) | AC26: 1. ottelu | AE26: 16 v 10 kk 2 pv
B27: Ylempi loppusarja | E27: =SUM(U22) -> 30 | F27: =SUM(V22) -> 0 | G27: =SUM(W22) -> 5 | H27: =SUM(X22) -> 8 | I27: =SUM(Y22) -> 85 | K27: =PRODUCT((F27+G27)/E27) -> 0.17 | L27: =PRODUCT(H27/E27) -> 0.27 | M27: =PRODUCT(I27/E27) -> 2.83 | N27: 49.7 % | O27: =PRODUCT(I27/N27) -> 171.0261569 | P27: Lyöty juoksu | S27: 17.05. 2005 Virkiä - SiiPe 2-0 (8-3, 2-1) | AC27: 1. ottelu | AE27: 16 v 10 kk 2 pv
B28: Alempi loppusarja | E28: =PRODUCT(Z22) -> 2 | F28: =PRODUCT(AA22) -> 0 | G28: =PRODUCT(AB22) -> 0 | H28: =PRODUCT(AC22) -> 4 | I28: =PRODUCT(AD22) -> 9 | K28: =PRODUCT((F28+G28)/E28) -> 0.00 | L28: =PRODUCT(H28/E28) -> 2.00 | M28: =PRODUCT(I28/E28) -> 4.50 | N28: 90.0 % | O28: =PRODUCT(I28/N28) -> 10 | P28: Tuotu juoksu | S28: 22.05. 2005 SiiPe - Fera 2-1 (5-4, 7-8, 2-0) | AC28: 2. ottelu | AE28: 16 v 8 kk 22 pv
B29: KAIKKI | E29: =SUM(E26:E28) -> 190 | F29: =SUM(F26:F28) -> 6 | G29: =SUM(G26:G28) -> 57 | H29: =SUM(H26:H28) -> 102 | I29: =SUM(I26:I28) -> 708 | K29: =PRODUCT((F29+G29)/E29) -> 0.33 | L29: =PRODUCT(H29/E29) -> 0.54 | M29: =PRODUCT(I29/E29) -> 3.73 | N29: =PRODUCT(I29/O29) -> 58.4 % | O29: =SUM(O26:O28) -> 1211.95672 | P29: Kunnari | S29: 26.06. 2007 SiiPe - ViU 2-1 (10-2, 1-8, 5-3) | AC29: 40. ottelu | AE29: 18 v 11 kk 11 pv
B31: Seurat | D31: SiiPe = Siilinjärven Pesis (1987), kasvattajaseura
D32: ViU = Viinijärven Urheilijat (1914)
D33: Kirittäret = Jyväskylän Pesis (2004)
D34: Pesä Ysit = Pesä Ysit, Lappeenranta (1976)

Sheet Arvo-ottelut
B1: ITÄ - LÄNSI - KORTTI
B2: Hanni-Mari Vainikainen os. Ruuskanen | D2: 15.7.1988 Maaninka
B3: B-TYTÖT | C3: Itä - Länsi, tulos | D3: Joukkue | E3: Seura | G3: V | H3: T | I3: H | J3: Up. | K3: Lj. | L3: Palk. | M3: O | N3: K | O3: L | P3: T | Q3: KL | R3: 1 | S3: 2 | T3: 3 | U3: k | V3: KL-% | W3: Pelinjohtaja | X3: Yleisöä
B4: 02.07. 2006 Kitee | C4: 0-2 (1-7, 2-5) | D4: Itä | E4: SiiPe | I4: 1 | J4: 2k | K4: 8 | M4: 1 | Q4: 2/4 | R4: 2/3 | T4: 0/1 | V4: 50.0 % | W4: Ville Lantta | X4: 1839
B5: 01.07. 2007 Kouvola | C5: 0-1 (3-7, 5-5) | D5: Itä | E5: SiiPe | I5: 1 | J5: 2k | K5: 3 | M5: 1 | P5: 1 | Q5: 1/5 | R5: 0/1 | T5: 1/2 | U5: 0/2 | V5: 20.0 % | W5: Jari Koski | X5: 2170
B6: Yhteensä | I6: 2 | M6: 2 | P6: 1 | Q6: 3/9 | R6: 2/4 | T6: 1/3 | U6: 0/2 | V6: 33.3 %
